lending/lending_fUSD_20241007
["ID","MTS","AMOUNT","RATE_DAILY","PERIOD"]
[339980968,1728259831573,-812.9464343,0.00017,2]
[339980969,1728259831585,-2529.6939657,0.00017,2]
[339980970,1728259831594,-317.60219324,0.000171,2]
[339980971,1728259831603,-165.12754183,0.000172,2]
[339980972,1728259831611,-152.3262999,0.000226,5]
[339980973,1728259831623,-11225.6737001,0.000226,5]
[339980974,1728259831632,-500.0,0.00024932,2]
[339980975,1728259831641,-500.0,0.00024932,2]
[339980976,1728259831650,-500.0,0.00024932,2]
[339980977,1728259831659,-2002.42692,0.00024932,2]
[339980978,1728259831668,-1123.0,0.00025,60]
[339980979,1728259831677,-769.69,0.00025,2]
[339980980,1728259831687,-150.99,0.00025,2]
[339980981,1728259831696,-481.17,0.00025366,2]
[339980982,1728259831705,-2801.35,0.00025366,2]
[339980983,1728259831715,-355.97,0.00025366,2]
[339980984,1728259831724,-499.99,0.00027,2]
[339980985,1728259831733,-164.05,0.00027114,2]
[339980986,1728259831742,-250.0,0.000272,2]
[339980987,1728259831751,-150.0,0.00027205,2]
[339980988,1728259831760,-346.68,0.00027266,2]
[339980989,1728259831769,-250.0,0.00027266,2]
[339980990,1728259831778,-1570.04,0.00027284,2]
[339980991,1728259831787,-274.04,0.00027308,2]
[339980992,1728259831796,-2049.1,0.00027362,2]
[339980993,1728259831806,-283.74,0.00027417,2]
[339980995,1728259831815,-250.0,0.00027426,2]
[339980997,1728259831824,-172.48,0.00027435,2]
[339980999,1728259831834,-800.0,0.00027462,2]
[339981001,1728259831843,-240.8,0.00027466,2]
[339981002,1728259831852,-162.49,0.00027513,2]
[339981003,1728259831861,-854.0,0.00027513,2]
[339981004,1728259831869,-481.17,0.0002763,2]
[339981005,1728259831878,-539.02,0.00027889,30]
[339981006,1728259831887,-167.08,0.0002807,2]
[339981007,1728259831896,-1000.0,0.000284,2]
[339981008,1728259831906,-1000.0,0.000285,2]
[339981009,1728259831915,-242.81,0.00028564,2]
[339981010,1728259831924,-240.8,0.0002884,2]
[339981011,1728259831933,-1000.0,0.000289,2]
[339981012,1728259831942,-754.75,0.00028988,2]
[339981013,1728259831951,-423.5,0.00028988,2]
[339981014,1728259831960,-754.75,0.00028988,2]
[339981015,1728259831968,-423.5,0.00028988,2]
[339981016,1728259831978,-423.5,0.00028988,2]
[339981017,1728259831987,-155.41,0.00028988,2]
[339981018,1728259831996,-423.5,0.00028988,2]
[339981019,1728259832005,-422.7,0.00028988,2]
[339981020,1728259832014,-187.019136,0.000294,2]
[339981021,1728259832024,-314.33921732,0.000294,15]
[339981022,1728259832033,-500.0,0.0002944,2]
[339981023,1728259832042,-17.38873258,0.0002944,2]
[339981024,1728259832054,-2482.61126742,0.0002944,2]
[339981025,1728259832063,-344.68211719,0.00029452,2]
[339981026,1728259832074,-12892.9645,0.00029452,2]
[339981027,1728259832083,-100000.0,0.00029452,2]
[339981028,1728259832093,-429.0,0.000295,13]
[339981029,1728259832103,-1989.58939443,0.0002953,2]
[339981030,1728259832112,-501.48928604,0.00029539,10]
[339981031,1728259832121,-500.0,0.00029539,10]
[339981032,1728259832130,-150.38922857,0.00029539,2]
[339981033,1728259832139,-239.49380713,0.00029539,2]
[339981034,1728259832149,-127385.9544426,0.0002954,2]
[339981035,1728259832158,-8073.3963,0.0002954,2]
[339981036,1728259832167,-151.0,0.0002954,7]
[339981037,1728259832176,-151.0,0.0002954,7]
[339981038,1728259832185,-151.0,0.0002954,7]
[339981039,1728259832194,-151.0,0.0002954,7]
[339981040,1728259832203,-177.1436797,0.0002954,2]
[339981041,1728259832212,-1869.5785358,0.0002954,2]
[339981042,1728259832221,-500.0,0.00029551,10]
[339981043,1728259832230,-151.0,0.00029552,7]
[339981044,1728259832239,-9288.2918198,0.00029552,2]
[339981045,1728259832248,-151.0,0.00029552,7]
[339981046,1728259832257,-249.293784,0.00029552,7]
[339981047,1728259832267,-8530.49067856,0.00029552,2]
[339981048,1728259832278,-920.06431593,0.00029552,2]
[339981049,1728259832310,-597.86703799,0.000288,2]
[339981050,1728259832330,-311.13296201,0.000288,2]
[339981051,1728259832339,-38674.63754511,0.00029552,2]
[339981052,1728259832348,-151.0,0.00029552,7]
[339981053,1728259832358,-151.0,0.00029552,7]
[339981054,1728259832367,-151.0,0.00029552,7]
[339981055,1728259832376,-151.0,0.00029552,7]
[339981056,1728259832385,-244.437856,0.00029552,7]
[339981057,1728259832394,-2693.5221454,0.0002956,2]
[339981058,1728259832403,-3078.4499085,0.0002956,2]
[339981059,1728259832412,-500.0,0.00029573,2]
[339981060,1728259832422,-200.0,0.00029734,2]
[339981061,1728259832431,-217.08,0.0002978,2]
[339981062,1728259832440,-164.05,0.00029866,2]
[339981063,1728259832449,-481.17,0.00029894,2]
[339981064,1728259832458,-754.75,0.00029944,2]
[339981065,1728259832467,-754.75,0.00029944,2]
[339981066,1728259832476,-754.75,0.00029944,2]
[339981067,1728259832485,-754.75,0.00029944,2]
[339981068,1728259832494,-754.75,0.00029944,2]
[339981069,1728259832503,-240.8,0.00030213,2]
[339981070,1728259832512,-180.0,0.00030244,120]
[339981071,1728259832522,-500.0,0.0003028,2]
[339981072,1728259832530,-500.0,0.0003028,2]
[339981073,1728259832539,-500.0,0.0003028,2]
[339981074,1728259832548,-500.0,0.0003028,2]
[339981075,1728259832557,-500.0,0.0003028,2]
[339981076,1728259832567,-264.01,0.0003028,2]
[339981077,1728259832576,-500.0,0.0003028,2]
[339981078,1728259832585,-500.0,0.0003028,2]
[339981079,1728259832703,-500.0,0.0003028,2]
[339981080,1728259832712,-500.0,0.0003028,2]
[339981081,1728259832722,-500.0,0.0003028,2]
[339981082,1728259832731,-500.0,0.0003028,2]
[339981083,1728259832741,-285.7,0.0003028,2]
[339981084,1728259832750,-500.0,0.0003028,2]
[339981085,1728259832758,-500.0,0.0003028,2]
[339981086,1728259832768,-151.0,0.0003028,7]
[339981087,1728259832778,-151.0,0.0003028,7]
[339981088,1728259832787,-534.16,0.00030357,2]
[339981089,1728259832796,-714.75,0.00030357,2]
[339981090,1728259832805,-1057.28856301,0.00030373,2]
[339981091,1728259832815,-167.08,0.00030387,2]
[339981092,1728259832824,-30850.77572233,0.00030448,2]
[339981093,1728259832836,-4277.14,0.00030448,2]
[339981097,1728259837857,-500.0,0.0002944,2]
[339981098,1728259837866,-568.86756084,0.0002954,2]
[339981125,1728259839580,-1886.52,0.0002954,2]
[339981126,1728259839739,-588.09100004,0.0002954,2]
[339981143,1728259842564,-391.82486442,0.0002954,2]
[339981144,1728259842621,-500.5800002,0.0002954,2]
[339981145,1728259842632,-500.0,0.0002954,2]
[339981146,1728259842778,-2502.4705639,0.0002954,2]
[339981147,1728259842787,-151.0,0.0002954,7]
[339981148,1728259842797,-151.0,0.00029552,7]
[339981149,1728259842806,-4850.39057414,0.00030448,2]
[339981163,1728260058705,162.22,0.00010959,2]
[339981192,1728261031687,-259.92921586,0.000177,2]
[339981193,1728261031784,-1263.07078414,0.000177,2]
[339981194,1728261031794,-200.0,0.00023,2]
[339981195,1728261031805,-454.97,0.00025864,2]
[339981196,1728261031815,-172.48,0.0002774,2]
[339981197,1728261031826,-452.35,0.00027877,2]
[339981198,1728261031835,-164.05,0.00027885,2]
[339981199,1728261031844,-405.63979538,0.00027997,2]
[339981201,1728261031862,-299.00615911,0.00027997,2]
[339981202,1728261037644,-295.35404551,0.00027997,2]
[339981203,1728261037653,-187.15,0.00028049,120]
[339981204,1728261037662,-261.74492208,0.00028095,2]
[339981205,1728261037674,-6343.80348218,0.00028095,2]
[339981207,1728261037702,-3223.36159574,0.00028095,2]
[339981208,1728261037711,-301.43676907,0.00028095,2]
[339981209,1728261037723,-358.33485164,0.00028095,2]
[339981210,1728261037734,-822.49017547,0.00028095,2]
[339981211,1728261037746,-381.33465368,0.00028095,2]
[339981212,1728261037758,-2113.65355014,0.00028095,2]
[339981213,1728261037767,-241.34644986,0.00028121,30]
[339981214,1728261037778,-285.50355014,0.00028121,30]
[339981215,1728261037787,-454.97,0.00028128,2]
[339981216,1728261037797,-250.0,0.00028171,2]
[339981217,1728261037807,-1913.88644985,0.00028171,2]
[339981218,1728261037818,-282.54722079,0.00028171,2]
[339981219,1728261037830,-554.56632936,0.00028171,2]
[339981220,1728261037850,-12.19721122,0.00028222,2]
[339981221,1728261037861,-237.80278878,0.00028222,2]
[339981222,1728261037871,-728.9098927,0.00028262,2]
[339981223,1728261037882,-271.0901073,0.00028262,2]
[339981224,1728261037891,-273.18552067,0.000284,2]
[339981225,1728261037902,-1520.98047815,0.000284,2]
[339981226,1728261037914,-1357.22542988,0.000284,2]
[339981227,1728261037926,-2084.0327375,0.000284,2]
[339981228,1728261037937,-2977.22530753,0.000284,2]
[339981229,1728261037948,-2166.78342138,0.000284,2]
[339981230,1728261037958,-285.49172499,0.000284,2]
[339981231,1728261037973,-538.79913189,0.000284,2]
[339981232,1728261037984,-324.9182369,0.000284,2]
[339981233,1728261037998,-703.01355159,0.000284,2]
[339981234,1728261038009,-661.43871148,0.000284,2]
[339981235,1728261038021,-11006.90574804,0.000284,2]
[339981236,1728261038031,-499.99,0.000284,2]
[339981237,1728261038042,-477.59,0.00028467,2]
[339981238,1728261038052,-250.0,0.0002854,2]
[339981239,1728261038062,-500.0,0.0002869,2]
[339981240,1728261038073,-162.49,0.00028699,2]
[339981241,1728261038086,-167.0,0.00028762,2]
[339981242,1728261038095,-2900.0,0.000289,10]
[339981243,1728261038105,-151.8,0.00028906,2]
[339981244,1728261038115,-150.0,0.00028927,2]
[339981245,1728261038125,-811.0,0.00028927,2]
[339981246,1728261038135,-1297.0,0.00028927,2]
[339981247,1728261038144,-170.24,0.00028927,2]
[339981248,1728261038154,-446.0,0.00028927,2]
[339981249,1728261038164,-1082.0,0.00028927,2]
[339981250,1728261038173,-561.512,0.00028927,2]
[339981251,1728261038183,-1302.33,0.00028986,2]
[339981252,1728261038193,-301.59685255,0.0002924,2]
[339981253,1728261038203,-6243.2312,0.0002924,2]
[339981254,1728261038212,-1548.8596194,0.0002933,4]
[339981255,1728261038228,-8172.01858942,0.0002933,4]
[339981256,1728261038239,-3125.34931369,0.0002933,4]
[339981262,1728261039678,-493.3932,0.000176,2]
[339981263,1728261039688,-38.47017027,0.00028927,2]
[339981264,1728261039737,-485.3980518,0.00028927,2]
[339981265,1728261039749,-410.13177793,0.00028927,2]
[339981266,1728261039758,-634.457277,0.0002933,4]
[339981267,1728261039769,-2511.31265484,0.0002933,4]
[339981268,1728261039780,-2954.1894928,0.0002933,4]
[339981269,1728261039791,-1593.75750387,0.0002933,4]
[339981270,1728261039802,-984.9210532,0.0002933,4]
[339981271,1728261039852,-2537.03952318,0.0002933,4]
[339981272,1728261039863,-662.70634916,0.0002933,4]
[339981273,1728261039874,-435.42037797,0.0002933,4]
[339981274,1728261039885,-4465.35320515,0.0002933,4]
[339981275,1728261039896,-807.664508,0.0002933,4]
[339981276,1728261042341,-3112.56057952,0.000229,2]
[339981277,1728261042351,-1163.92124095,0.0002933,4]
[339981278,1728261042363,-2141.25728077,0.0002933,4]
[339981279,1728261042374,-630.25841339,0.0002933,4]
[339981280,1728261042399,-866.91869186,0.0002933,4]
[339981281,1728261042409,-629.374697,0.0002933,4]
[339981282,1728261042420,-1035.00418291,0.0002933,4]
[339981283,1728261042431,-2105.4393013,0.0002933,4]
[339981284,1728261042441,-2242.35735466,0.0002933,4]
[339981285,1728261042460,-550.50093868,0.0002933,4]
[339981298,1728261045716,-349.99877428,0.0002924,2]
[339981299,1728261045772,-627.22748368,0.0002924,2]
[339981301,1728261836719,360.0,0.00022,60]
[339981302,1728261881104,300.0,0.00015,2]
[339981304,1728262051918,300.0,0.00015,2]
[339981379,1728262163700,154.95,0.00010959,2]
[339981401,1728262231795,-290.832,0.000178,2]
[339981402,1728262231807,-133.168,0.000178,2]
[339981403,1728262231817,-190.69362,0.000246,5]
[339981404,1728262234775,-4932.2,0.000246,5]
[339981567,1728262237996,-2649.10638,0.000246,5]
[339981568,1728262238010,-1037.52019319,0.000247,2]
[339981569,1728262238021,-409.47,0.0002589,2]
[339981570,1728262238032,-164.05,0.00027635,2]
[339981571,1728262238044,-232.73,0.000277,2]
[339981572,1728262238057,-250.0,0.00027782,2]
[339981573,1728262238071,-800.0,0.00027874,2]
[339981574,1728262238083,-250.0,0.00027874,2]
[339981575,1728262238097,-250.0,0.00027883,2]
[339981576,1728262238110,-640.16,0.00027892,2]
[339981577,1728262238125,-499.99,0.00027892,2]
[339981578,1728262238135,-238.79,0.00027929,2]
[339981579,1728262238146,-1839.7,0.00027929,2]
[339981580,1728262238157,-160.53,0.00027987,2]
[339981581,1728262238169,-508.27,0.00028008,30]
[339981582,1728262238182,-409.47,0.00028154,2]
[339981583,1728262238195,-250.0,0.00028251,2]
[339981584,1728262238206,-152.688,0.00028251,2]
[339981585,1728262238220,-238.714,0.00028251,2]
[339981586,1728262238232,-200.0,0.00028437,2]
[339981587,1728262238247,-152.0,0.00028511,3]
[339981588,1728262238259,-846.05,0.00028582,2]
[339981589,1728262238271,-163.85,0.00028623,2]
[339981590,1728262238282,-3702.0,0.00028756,2]
[339981591,1728262238294,-422.34458308,0.00028794,2]
[339981592,1728262238306,-2800.0,0.000289,10]
[339981593,1728262238318,-300.0,0.00029,120]
[339981594,1728262238330,-250.0,0.00029,30]
[339981595,1728262238342,-150.0,0.00029139,2]
[339981596,1728262238354,-1000.0,0.0002914,2]
[339981597,1728262238366,-1113.1381,0.0002914,2]
[339981598,1728262238377,-480.2651,0.0002914,2]
[339981599,1728262238389,-409.99091065,0.0002914,15]
[339981600,1728262238401,-2528.86515201,0.0002914,2]
[339981601,1728262238426,-3188.5644,0.0002914,2]
[339981602,1728262238440,-14957.82994799,0.0002914,2]
[339981603,1728262238452,-2500.0,0.0002914,2]
[339981604,1728262238463,-263.89724592,0.0002914,2]
[339981605,1728262238475,-1915.15,0.0002914,2]
[339981606,1728262238486,-175.9919,0.0002914,2]
[339981607,1728262238500,-300.0,0.000292,30]
[339981608,1728262238512,-986.8026588,0.0002923,2]
[339981609,1728262238525,-5642.352,0.0002923,2]
[339981610,1728262238538,-211.174,0.00029239,22]
[339981611,1728262238550,-161.637,0.00029239,22]
[339981612,1728262238563,-167.4102966,0.00029239,2]
[339981613,1728262238575,-6281.65981488,0.00029239,2]
[339981614,1728262238588,-2113.01262716,0.00029239,2]
[339981615,1728262238600,-1100.49244204,0.0002924,2]
[339981616,1728262238612,-54443.2341,0.0002924,2]
[339981617,1728262238624,-500.0,0.0002924,2]
[339981618,1728262238636,-98853.93796965,0.0002924,2]
[339981623,1728262240010,-5025.928769,0.0002924,2]
[339981624,1728262240068,-2396.58360006,0.0002924,2]
[339981625,1728262241052,-349.63949075,0.0002924,2]
[339981626,1728262241063,-703.45203375,0.0002924,2]
[339981627,1728262241074,-4705.48744652,0.0002924,2]
[339981628,1728262241085,-2202.09187204,0.0002924,2]
[339981649,1728262242866,-401.04592497,0.0002924,2]
[339981838,1728262245804,-526.30513404,0.0002924,2]
[339981839,1728262245816,-75484.75145922,0.0002924,2]
[339981840,1728262245825,-1651.6223,0.0002924,2]
[339981841,1728262245836,-435.8929,0.0002924,2]
[339981842,1728262245845,-1148.033,0.0002924,2]
[339981843,1728262245854,-150.21922956,0.0002924,2]
[339981844,1728262245866,-500.0,0.00029273,2]
[339981845,1728262245875,-85750.6657269,0.0002932,4]
[339981846,1728262245884,-759.46631134,0.0002932,2]
[339981847,1728262245894,-630.65027247,0.00029329,2]
[339981848,1728262245903,-157209.553833,0.0002933,4]
[339981849,1728262245912,-100492.618731,0.0002933,4]
[339981850,1728262245922,-3321.66696962,0.00029337,2]
[339981851,1728262245931,-224903.36462696,0.0002934,2]
[339981852,1728262245946,-3319.80514843,0.0002934,2]
[339981853,1728262245958,-617.825,0.0002934,2]
[339981874,1728262878013,162.22,0.00010959,2]
[339981922,1728263432117,-784.65653678,0.000236,3]
[339981924,1728263432129,-8449.34346322,0.000236,3]
[339981926,1728263432139,-11514.0,0.000243,5]
[339981928,1728263432148,-431.38,0.00025724,2]
[339981930,1728263432157,-677.2794957,0.0002622,2]
[339981932,1728263432167,-150.0,0.0002622,2]
[339981934,1728263432177,-296.0,0.0002622,2]
[339981936,1728263432189,-211.174,0.00026356,13]
[339981938,1728263432198,-164.05,0.00026933,2]
[339981939,1728263432208,-2492.89,0.00027059,2]
[339981940,1728263432223,-1548.95,0.00027065,2]
[339981941,1728263432238,-177.15,0.000271,2]
[339981942,1728263432252,-1592.4,0.000271,2]
[339981943,1728263432263,-388.62,0.00027101,2]
[339981944,1728263432276,-158.01,0.00027101,2]
[339981945,1728263432289,-758.86,0.00027139,2]
[339981947,1728263432302,-250.0,0.00027336,2]
[339981949,1728263432316,-250.0,0.00027382,2]
[339981951,1728263432329,-499.99,0.00027382,2]
[339981953,1728263432343,-1000.0,0.00027397,2]
[339981955,1728263432356,-219.78705135,0.00027397,2]
[339981960,1728263432386,-30.21294865,0.00027397,2]
[339981961,1728263432399,-179.36,0.00027591,2]
[339981962,1728263432413,-195.04,0.000277,2]
[339981963,1728263432426,-421.19755701,0.0002789,2]
[339981964,1728263432442,-112.96244299,0.0002789,2]
[339981965,1728263432453,-1500.0,0.000279,2]
[339981966,1728263432466,-160.53,0.0002791,2]
[339981967,1728263432482,-431.38,0.00027987,2]
[339981968,1728263432495,-172.48,0.0002804,2]
[339981969,1728263432507,-150.0,0.00028071,2]
[339981970,1728263432522,-167.08,0.00028126,2]
[339981971,1728263432536,-187.15,0.00028173,120]
[339981972,1728263432550,-1115.977,0.00028261,2]
[339981973,1728263432561,-808.0,0.00028261,2]
[339981974,1728263432571,-559.0,0.00028261,2]
[339981975,1728263432582,-288.394,0.00028261,2]
[339981976,1728263432594,-252.86,0.00028478,2]
[339981977,1728263432607,-1068.16,0.00028478,2]
[339981978,1728263432619,-534.16,0.00028712,2]
[339981979,1728263432630,-534.16,0.00028712,2]
[339981980,1728263432643,-532.71,0.00028712,2]
[339981981,1728263432655,-300.0,0.00029,30]
[339981982,1728263432667,-2121.8735,0.0002903,2]
[339981983,1728263432679,-943.2558,0.0002903,2]
[339981984,1728263432691,-16596.96183323,0.0002903,2]
[339981985,1728263432706,-2704.11559046,0.0002903,2]
[339981986,1728263432720,-492.41979394,0.0002903,2]
[339981987,1728263432733,-4901.89310082,0.0002903,2]
[339981988,1728263432747,-306.48999997,0.0002903,2]
[339981996,1728263438019,-490.62,0.00028634,30]
[339981997,1728263438028,-1732.37999999,0.0002903,2]
[339981998,1728263438139,-697.22222227,0.0002903,2]
[339981999,1728263438150,-574.98736815,0.0002903,2]
[339982000,1728263438161,-4314.98017366,0.0002903,2]
[339982001,1728263438172,-2555.70972401,0.0002903,2]
[339982002,1728263438183,-956.47940434,0.0002903,2]
[339982003,1728263438194,-331.40818062,0.0002903,2]
[339982004,1728263438205,-541.90799385,0.0002903,2]
[339982005,1728263438216,-1241.67125323,0.0002903,2]
[339982006,1728263438269,-1400.2857462,0.0002903,2]
[339982007,1728263438280,-1476.7741378,0.0002903,2]
[339982008,1728263438329,-1003.70632001,0.0002903,2]
[339982009,1728263438341,-276.14857609,0.0002903,2]
[339982010,1728263438397,-7474.19999996,0.0002903,2]
[339982011,1728263438408,-443.81585153,0.0002903,2]
[339982015,1728263440010,-14994.40022987,0.0002903,2]
[339982016,1728263440020,-2500.0,0.0002903,2]
[339982017,1728263440030,-383.2155727,0.00029039,15]
[339982018,1728263440040,-15338.00910521,0.0002904,2]
[339982019,1728263440070,-429.15446819,0.0002904,2]
[339982020,1728263440191,-293.40504969,0.0002904,2]
[339982021,1728263440203,-344.62556429,0.0002904,2]
[339982022,1728263440214,-337.28278854,0.0002904,2]
[339982023,1728263440312,-1064.4559759,0.0002904,2]
[339982024,1728263440324,-552.33090042,0.0002904,2]
[339982025,1728263440335,-676.78766256,0.0002904,2]
[339982026,1728263440346,-1980.46927494,0.0002904,2]
[339982027,1728263440357,-418.28382068,0.0002904,2]
[339982028,1728263442039,-1672.10192464,0.0002904,2]
[339982029,1728263442051,-2244.23618633,0.0002904,2]
[339982047,1728263443025,-1107.48437861,0.0002904,2]
[339982049,1728263443035,-177.1848,0.0002904,2]
[339982050,1728263443045,-3174.30699615,0.0002904,2]
[339982051,1728263443201,-1156.89034543,0.0002904,2]
[339982098,1728263703238,1000.0,0.00013,10]
[339982142,1728264632421,-291.57876,0.000197,2]
[339982143,1728264632432,-500.0,0.000197,2]
[339982144,1728264632443,-578.42124,0.000197,2]
[339982145,1728264632452,-398.23,0.00026279,2]
[339982146,1728264632461,-142.57823206,0.00027,7]
[339982147,1728264632472,-1389.46185696,0.00027,7]
[339982148,1728264632481,-3340.2122,0.00027928,2]
[339982149,1728264632490,-150.0,0.00028028,2]
[339982150,1728264632499,-559.0,0.00028028,2]
[339982151,1728264632508,-934.0,0.00028028,2]
[339982152,1728264632517,-2002.262,0.00028028,2]
[339982153,1728264632526,-554.0,0.00028028,2]
[339982154,1728264632535,-3352.0,0.00028028,2]
[339982155,1728264632543,-519.06394304,0.00028028,2]
[339982156,1728264632554,-288.93605696,0.00028028,2]
[339982157,1728264632563,-1911.0,0.00028028,2]
[339982158,1728264632572,-450.883,0.00028028,2]
[339982159,1728264632581,-863.225,0.00028028,2]
[339982160,1728264632590,-628.322,0.00028028,2]
[339982161,1728264632611,-194.085,0.00028028,2]
[339982162,1728264632620,-2462.73438011,0.00028028,2]
[339982163,1728264632629,-160.53,0.0002803,2]
[339982164,1728264632638,-194.31,0.00028133,2]
[339982165,1728264632647,-164.05,0.00028259,2]
[339982166,1728264632657,-250.0,0.00028276,2]
[339982167,1728264632666,-250.0,0.00028301,2]
[339982168,1728264632674,-156.57,0.00028344,120]
[339982169,1728264632684,-1000.0,0.00028356,2]
[339982170,1728264632693,-309.91,0.00028378,2]
[339982171,1728264632702,-473.85,0.00028416,30]
[339982172,1728264632711,-250.0,0.00028438,2]
[339982173,1728264632719,-398.23,0.00028543,2]
[339982174,1728264632728,-423.34,0.00029014,2]
[339982175,1728264632737,-3347.3768,0.0002903,2]
[339982176,1728264632746,-364.0708,0.0002903,2]
[339982177,1728264632755,-1433.96141794,0.0002903,2]
[339982180,1728264638713,-347.3276053,0.00028028,2]
[339982181,1728264638724,-624.38999999,0.00028028,2]
[339982187,1728264640529,-1305.1161,0.00028028,2]
[339982188,1728264640540,-3623.12229471,0.00028028,2]
[339982189,1728264640549,-151.291,0.00028028,2]
[339982190,1728264640558,-7517.38458206,0.0002903,2]
[339982191,1728264640567,-1000.0,0.0002903,2]
[339982192,1728264640576,-10105.5081,0.0002903,2]
[339982193,1728264640585,-167.08,0.00029059,2]
[339982194,1728264640594,-2462.79192693,0.00029139,2]
[339982195,1728264640603,-167.51,0.00029188,2]
[339982196,1728264640612,-300.0,0.000292,30]
[339982197,1728264640621,-152.0,0.00029243,3]
[339982198,1728264640630,-300.0,0.000293,30]
[339982199,1728264640639,-500.0,0.00029448,2]
[339982200,1728264640649,-439.72,0.00029448,2]
[339982201,1728264640658,-500.0,0.00029448,2]
[339982202,1728264640667,-500.0,0.00029448,2]
[339982203,1728264640676,-500.0,0.00029448,2]
[339982204,1728264640685,-500.0,0.00029448,2]
[339982205,1728264640695,-500.0,0.00029448,2]
[339982206,1728264640704,-500.0,0.00029448,2]
[339982207,1728264640713,-500.0,0.00029448,2]
[339982208,1728264640722,-500.0,0.00029448,2]
[339982209,1728264640731,-500.0,0.00029448,2]
[339982210,1728264640740,-500.0,0.00029448,2]
[339982211,1728264640749,-500.0,0.00029448,2]
[339982212,1728264640758,-500.0,0.00029448,2]
[339982213,1728264640767,-500.0,0.00029448,2]
[339982214,1728264640776,-500.0,0.00029448,2]
[339982215,1728264640785,-500.0,0.00029448,2]
[339982216,1728264640794,-500.0,0.00029448,2]
[339982217,1728264640803,-500.0,0.00029448,2]
[339982218,1728264640812,-500.0,0.00029448,2]
[339982219,1728264640821,-500.0,0.00029448,2]
[339982220,1728264640830,-500.0,0.00029448,2]
[339982221,1728264640840,-500.0,0.00029448,2]
[339982222,1728264640850,-500.0,0.00029448,2]
[339982223,1728264640859,-500.0,0.00029448,2]
[339982224,1728264640868,-500.0,0.00029448,2]
[339982225,1728264640877,-500.0,0.00029448,2]
[339982226,1728264640886,-500.0,0.00029448,2]
[339982227,1728264640895,-500.0,0.00029448,2]
[339982228,1728264640904,-500.0,0.00029448,2]
[339982229,1728264640913,-500.0,0.00029448,2]
[339982230,1728264640922,-500.0,0.00029448,2]
[339982231,1728264640931,-500.0,0.00029448,2]
[339982232,1728264640940,-500.0,0.00029448,2]
[339982233,1728264640950,-500.0,0.00029448,2]
[339982234,1728264640959,-500.0,0.00029448,2]
[339982235,1728264640968,-500.0,0.00029448,2]
[339982236,1728264640977,-500.0,0.00029448,2]
[339982237,1728264640985,-500.0,0.00029448,2]
[339982238,1728264640994,-500.0,0.00029448,2]
[339982239,1728264641004,-500.0,0.00029448,2]
[339982240,1728264641013,-500.0,0.00029448,2]
[339982241,1728264641131,-500.0,0.00029448,2]
[339982242,1728264641142,-500.0,0.00029448,2]
[339982243,1728264641151,-500.0,0.00029448,2]
[339982244,1728264641160,-500.0,0.00029448,2]
[339982245,1728264641170,-500.0,0.00029448,2]
[339982246,1728264641180,-500.0,0.00029448,2]
[339982247,1728264641189,-500.0,0.00029448,2]
[339982248,1728264641198,-500.0,0.00029448,2]
[339982249,1728264641207,-500.0,0.00029448,2]
[339982250,1728264641216,-500.0,0.00029448,2]
[339982251,1728264641225,-500.0,0.00029448,2]
[339982252,1728264641234,-500.0,0.00029448,2]
[339982253,1728264641243,-500.0,0.00029448,2]
[339982254,1728264641252,-500.0,0.00029448,2]
[339982255,1728264641261,-500.0,0.00029448,2]